[Event "Late-Titled-Tuesday-Blitz-March-12-2024"]
[Site "Chess.com"]
[Date "2024.03.12"]
[Round "1"]
[White "Rawnsdale"]
[Black "K_A_S_T_O_R"]
[Result "1/2-1/2"]
[WhiteElo "2500"]
[BlackElo "2856"]
[TimeControl "180+1"]
[EndTime "14:08:05 PDT"]
[Termination "Game drawn - insufficient material"]

1. e4 {[%clk 0:03:00.9]} 1... c5 {[%clk 0:02:59.6]} 2. Nf3 {[%clk 0:03:00.8]}
2... d6 {[%clk 0:02:59.5]} 3. d4 {[%clk 0:03:01.4]} 3... cxd4 {[%clk 0:02:59.8]}
4. Nxd4 {[%clk 0:03:02.3]} 4... Nf6 {[%clk 0:03:00.1]} 5. Nc3 {[%clk 0:03:03]}
5... a6 {[%clk 0:03:00.6]} 6. Rg1 {[%clk 0:03:03.7]} 6... h6 {[%clk 0:02:54.5]}
7. g4 {[%clk 0:03:03.4]} 7... g5 {[%clk 0:02:54.4]} 8. Be3 {[%clk 0:02:58.3]}
8... Nbd7 {[%clk 0:02:48.9]} 9. Bc4 {[%clk 0:02:47.6]} 9... Ne5 {[%clk
0:02:47.6]} 10. Be2 {[%clk 0:02:47.2]} 10... e6 {[%clk 0:02:45.7]} 11. Qd2
{[%clk 0:02:45.4]} 11... Qc7 {[%clk 0:02:33.5]} 12. O-O-O {[%clk 0:02:44.2]}
12... Bd7 {[%clk 0:02:33.6]} 13. Kb1 {[%clk 0:02:38.8]} 13... O-O-O {[%clk
0:02:28.4]} 14. f4 {[%clk 0:02:34.9]} 14... gxf4 {[%clk 0:02:27.7]} 15. Bxf4
{[%clk 0:02:35.3]} 15... Bg7 {[%clk 0:02:27.8]} 16. g5 {[%clk 0:02:31.4]} 16...
hxg5 {[%clk 0:02:26.4]} 17. Bxg5 {[%clk 0:02:31.6]} 17... Rdg8 {[%clk
0:02:19.2]} 18. h4 {[%clk 0:02:30.7]} 18... Be8 {[%clk 0:02:01.7]} 19. Nb3
{[%clk 0:02:29.6]} 19... Nfd7 {[%clk 0:02:00.1]} 20. Qxd6 {[%clk 0:02:17.8]}
20... Qxd6 {[%clk 0:01:59.9]} 21. Rxd6 {[%clk 0:02:18.3]} 21... Bf8 {[%clk
0:02:00.2]} 22. Rdd1 {[%clk 0:02:17]} 22... f6 {[%clk 0:01:58.4]} 23. Be3 {[%clk
0:02:09.4]} 23... Rxg1 {[%clk 0:01:58.6]} 24. Rxg1 {[%clk 0:02:08.8]} 24... Rxh4
{[%clk 0:01:58.1]} 25. Rf1 {[%clk 0:01:52.5]} 25... Bh6 {[%clk 0:01:50.5]} 26.
Bd4 {[%clk 0:01:50.5]} 26... Bf4 {[%clk 0:01:44.2]} 27. Bf2 {[%clk 0:01:41.2]}
27... Rh6 {[%clk 0:01:42.2]} 28. Bd4 {[%clk 0:01:38.7]} 28... Bg5 {[%clk
0:01:41.2]} 29. a4 {[%clk 0:01:36.7]} 29... Kc7 {[%clk 0:01:37.1]} 30. a5 {[%clk
0:01:36.4]} 30... Nc6 {[%clk 0:01:33.8]} 31. Bg1 {[%clk 0:01:30.3]} 31... Bg6
{[%clk 0:01:32]} 32. Bc4 {[%clk 0:01:22.6]} 32... Kd6 {[%clk 0:01:31.4]} 33. Bf2
{[%clk 0:01:18.8]} 33... Nce5 {[%clk 0:01:27.7]} 34. Bg3 {[%clk 0:01:18]} 34...
Ke7 {[%clk 0:01:27.8]} 35. Be2 {[%clk 0:01:14]} 35... Rh3 {[%clk 0:01:27.7]} 36.
Bf2 {[%clk 0:01:10.1]} 36... Be3 {[%clk 0:01:27]} 37. Bxe3 {[%clk 0:01:04.5]}
37... Rxe3 {[%clk 0:01:27.3]} 38. Kc1 {[%clk 0:01:04.2]} 38... Rg3 {[%clk
0:01:18.1]} 39. Kd2 {[%clk 0:01:04.1]} 39... Rg2 {[%clk 0:01:16.9]} 40. Ke3
{[%clk 0:01:01.2]} 40... Rh2 {[%clk 0:01:13.1]} 41. Nd4 {[%clk 0:01:00.5]} 41...
Bh5 {[%clk 0:01:12.6]} 42. Bxh5 {[%clk 0:00:59.8]} 42... Rxh5 {[%clk 0:01:13.1]}
43. Rg1 {[%clk 0:00:58]} 43... Nc4+ {[%clk 0:01:11]} 44. Kf3 {[%clk 0:00:51.8]}
44... Nxb2 {[%clk 0:01:08.1]} 45. Rb1 {[%clk 0:00:51.6]} 45... Rh3+ {[%clk
0:01:05.1]} 46. Ke2 {[%clk 0:00:49.8]} 46... Rxc3 {[%clk 0:01:03.8]} 47. Rxb2
{[%clk 0:00:49.9]} 47... Rc7 {[%clk 0:01:04.3]} 48. Kd2 {[%clk 0:00:45]} 48...
Ne5 {[%clk 0:01:03.6]} 49. Rb4 {[%clk 0:00:39]} 49... Nc4+ {[%clk 0:01:03]} 50.
Kd3 {[%clk 0:00:38]} 50... Nxa5 {[%clk 0:01:03.5]} 51. Rb6 {[%clk 0:00:38]}
51... Rd7 {[%clk 0:00:55.5]} 52. Kc3 {[%clk 0:00:35.5]} 52... Rd6 {[%clk
0:00:51.4]} 53. Rb1 {[%clk 0:00:26]} 53... Kd7 {[%clk 0:00:51.6]} 54. Rg1 {[%clk
0:00:25.7]} 54... Kc7 {[%clk 0:00:51.7]} 55. Rg6 {[%clk 0:00:25.9]} 55... e5
{[%clk 0:00:51.4]} 56. Nf5 {[%clk 0:00:25.9]} 56... Re6 {[%clk 0:00:51]} 57.
Rg7+ {[%clk 0:00:25.9]} 57... Kb6 {[%clk 0:00:51.4]} 58. Ne7 {[%clk 0:00:25.9]}
58... Nc6 {[%clk 0:00:51.1]} 59. Nd5+ {[%clk 0:00:26.1]} 59... Ka7 {[%clk
0:00:51.2]} 60. Rf7 {[%clk 0:00:25.4]} 60... Nd4 {[%clk 0:00:49.4]} 61. Rxf6
{[%clk 0:00:24.8]} 61... Rxf6 {[%clk 0:00:49.4]} 62. Nxf6 {[%clk 0:00:25.7]}
62... Kb6 {[%clk 0:00:50.1]} 63. Nd7+ {[%clk 0:00:25.9]} 63... Kb5 {[%clk
0:00:48.3]} 64. Nxe5 {[%clk 0:00:26.8]} 64... Ne6 {[%clk 0:00:48.8]} 65. Nc4
{[%clk 0:00:26.4]} 65... Nc5 {[%clk 0:00:48.6]} 66. e5 {[%clk 0:00:25.7]} 66...
b6 {[%clk 0:00:46.8]} 67. Kd4 {[%clk 0:00:25.1]} 67... a5 {[%clk 0:00:45.9]} 68.
Kd5 {[%clk 0:00:24.6]} 68... a4 {[%clk 0:00:46.3]} 69. c3 {[%clk 0:00:22.2]}
69... Nd3 {[%clk 0:00:40.7]} 70. Na3+ {[%clk 0:00:21.7]} 70... Ka5 {[%clk
0:00:41.1]} 71. e6 {[%clk 0:00:22.6]} 71... Nf4+ {[%clk 0:00:40.8]} 72. Kd6
{[%clk 0:00:22.8]} 72... Nxe6 {[%clk 0:00:40.9]} 73. Kxe6 {[%clk 0:00:23.7]}
73... b5 {[%clk 0:00:40.1]} 74. Kd5 {[%clk 0:00:22.8]} 74... b4 {[%clk
0:00:40.1]} 75. cxb4+ {[%clk 0:00:23.5]} 75... Kxb4 {[%clk 0:00:40.4]} 76. Nc4
{[%clk 0:00:24.4]} 76... Kb3 {[%clk 0:00:40.3]} 77. Kd4 {[%clk 0:00:24.7]} 77...
a3 {[%clk 0:00:38.8]} 78. Nxa3 {[%clk 0:00:24.7]} 1/2-1/2

[Event "Late-Titled-Tuesday-Blitz-March-12-2024"]
[Site "Chess.com"]
[Date "2024.03.12"]
[Round "1"]
[White "andrew-blr"]
[Black "carloseduar100"]
[Result "1/2-1/2"]
[WhiteElo "2639"]
[BlackElo "2310"]
[TimeControl "180+1"]
[EndTime "14:08:06 PDT"]
[Termination "Game drawn by repetition"]

1. d4 {[%clk 0:03:00.9]} 1... d5 {[%clk 0:02:59.5]} 2. c4 {[%clk 0:03:00.7]}
2... e5 {[%clk 0:02:59.7]} 3. dxe5 {[%clk 0:02:59.6]} 3... d4 {[%clk 0:03:00.6]}
4. Nf3 {[%clk 0:02:59.3]} 4... Nc6 {[%clk 0:03:01.1]} 5. a3 {[%clk 0:02:59.8]}
5... Nge7 {[%clk 0:03:01.1]} 6. e3 {[%clk 0:02:59.1]} 6... Bg4 {[%clk
0:02:59.9]} 7. Be2 {[%clk 0:02:58]} 7... dxe3 {[%clk 0:02:59.6]} 8. Qxd8+ {[%clk
0:02:56.8]} 8... Rxd8 {[%clk 0:03:00.5]} 9. Bxe3 {[%clk 0:02:55.9]} 9... Ng6
{[%clk 0:03:00.4]} 10. Nc3 {[%clk 0:02:47.7]} 10... Ngxe5 {[%clk 0:03:00.4]} 11.
Nxe5 {[%clk 0:02:46.1]} 11... Nxe5 {[%clk 0:03:01.3]} 12. Bxg4 {[%clk
0:02:31.7]} 12... Nxg4 {[%clk 0:03:02.2]} 13. Bf4 {[%clk 0:02:32.1]} 13... Bc5
{[%clk 0:02:59.5]} 14. O-O {[%clk 0:02:31.1]} 14... c6 {[%clk 0:02:58.4]} 15. h3
{[%clk 0:02:31]} 15... Nxf2 {[%clk 0:02:52.3]} 16. Rxf2 {[%clk 0:02:29.5]} 16...
Bxf2+ {[%clk 0:02:53.2]} 17. Kxf2 {[%clk 0:02:29.2]} 17... Rd4 {[%clk
0:02:54.1]} 18. Be5 {[%clk 0:02:15.8]} 18... Rxc4 {[%clk 0:02:52.9]} 19. Bxg7
{[%clk 0:02:15.6]} 19... Rg8 {[%clk 0:02:52.3]} 20. Re1+ {[%clk 0:02:15.2]}
20... Kd7 {[%clk 0:02:52.4]} 21. Be5 {[%clk 0:02:10.5]} 21... b5 {[%clk
0:02:41.8]} 22. Rd1+ {[%clk 0:02:09.2]} 22... Kc8 {[%clk 0:02:35.2]} 23. Rd6
{[%clk 0:02:05.8]} 23... a5 {[%clk 0:02:32.7]} 24. Rf6 {[%clk 0:02:04.6]} 24...
b4 {[%clk 0:02:31.4]} 25. axb4 {[%clk 0:02:04.5]} 25... axb4 {[%clk 0:02:32.3]}
26. Na4 {[%clk 0:02:04.4]} 26... Rc2+ {[%clk 0:02:32]} 27. Kf3 {[%clk
0:02:03.1]} 27... Rgxg2 {[%clk 0:02:30.9]} 28. Bd4 {[%clk 0:01:43.8]} 28... Rgd2
{[%clk 0:02:08.6]} 29. Bc5 {[%clk 0:01:30.8]} 29... Rh2 {[%clk 0:02:04.1]} 30.
Rxf7 {[%clk 0:01:27.1]} 30... Rxh3+ {[%clk 0:02:04.2]} 31. Kg4 {[%clk
0:01:26.9]} 31... Rh6 {[%clk 0:01:52.5]} 32. Nb6+ {[%clk 0:01:17.1]} 32... Kd8
{[%clk 0:01:46.6]} 33. Rf8+ {[%clk 0:01:03.6]} 33... Kc7 {[%clk 0:01:38]} 34.
Rf7+ {[%clk 0:00:59.5]} 34... Kd8 {[%clk 0:01:38.1]} 35. Be3 {[%clk 0:00:58.8]}
35... Rg6+ {[%clk 0:01:37.4]} 36. Kf5 {[%clk 0:00:56.8]} 36... Rxb2 {[%clk
0:01:27.7]} 37. Rf8+ {[%clk 0:00:55]} 37... Kc7 {[%clk 0:01:18]} 38. Rf7+ {[%clk
0:00:54.3]} 38... Kd8 {[%clk 0:01:18]} 39. Rxh7 {[%clk 0:00:53.8]} 39... Rgg2
{[%clk 0:00:42.7]} 40. Bg5+ {[%clk 0:00:48.6]} 40... Rxg5+ {[%clk 0:00:42.1]}
41. Kxg5 {[%clk 0:00:49.2]} 41... b3 {[%clk 0:00:42.5]} 42. Rh3 {[%clk 0:00:43]}
42... Kc7 {[%clk 0:00:42]} 43. Na4 {[%clk 0:00:38.7]} 43... Ra2 {[%clk 0:00:41]}
44. Nc3 {[%clk 0:00:36.3]} 44... b2 {[%clk 0:00:37.8]} 45. Nb1 {[%clk
0:00:25.7]} 45... Ra1 {[%clk 0:00:36.3]} 46. Rh1 {[%clk 0:00:25.1]} 46... Ra4
{[%clk 0:00:36.7]} 47. Rh2 {[%clk 0:00:21.6]} 47... Rb4 {[%clk 0:00:35.4]} 48.
Kf5 {[%clk 0:00:21.4]} 48... Kb6 {[%clk 0:00:34.5]} 49. Ke5 {[%clk 0:00:21.5]}
49... Ka5 {[%clk 0:00:34.3]} 50. Rc2 {[%clk 0:00:21.5]} 50... Rb6 {[%clk
0:00:29.3]} 51. Kd6 {[%clk 0:00:21.3]} 51... Ka4 {[%clk 0:00:26.9]} 52. Kc5
{[%clk 0:00:19.8]} 52... Rb8 {[%clk 0:00:20.1]} 53. Rc3 {[%clk 0:00:15.6]} 53...
Rb5+ {[%clk 0:00:13.8]} 54. Kc4 {[%clk 0:00:14.4]} 54... Rb4+ {[%clk 0:00:11.2]}
55. Kc5 {[%clk 0:00:14.7]} 55... Rb5+ {[%clk 0:00:11.6]} 56. Kc4 {[%clk
0:00:14.2]} 56... Rb4+ {[%clk 0:00:11.8]} 57. Kc5 {[%clk 0:00:14.5]} 57... Rb5+
{[%clk 0:00:12.2]} 1/2-1/2

[Event "Late-Titled-Tuesday-Blitz-March-12-2024"]
[Site "Chess.com"]
[Date "2024.03.12"]
[Round "1"]
[White "CarlosjPineror"]
[Black "DonBroca"]
[Result "1/2-1/2"]
[WhiteElo "2604"]
[BlackElo "2235"]
[TimeControl "180+1"]
[EndTime "14:08:11 PDT"]
[Termination "Game drawn by stalemate"]

1. e4 {[%clk 0:02:57]} 1... c5 {[%clk 0:02:59.7]} 2. Nf3 {[%clk 0:02:56.9]} 2...
g6 {[%clk 0:02:56.2]} 3. c3 {[%clk 0:02:53.3]} 3... Bg7 {[%clk 0:02:54.8]} 4. d4
{[%clk 0:02:53.3]} 4... cxd4 {[%clk 0:02:55.7]} 5. cxd4 {[%clk 0:02:54.1]} 5...
d5 {[%clk 0:02:56.6]} 6. e5 {[%clk 0:02:53.3]} 6... Bg4 {[%clk 0:02:55.8]} 7.
Be2 {[%clk 0:02:51.8]} 7... e6 {[%clk 0:02:52.7]} 8. h3 {[%clk 0:02:51.4]} 8...
Bxf3 {[%clk 0:02:52.6]} 9. Bxf3 {[%clk 0:02:52]} 9... Ne7 {[%clk 0:02:51.8]} 10.
O-O {[%clk 0:02:52.6]} 10... O-O {[%clk 0:02:52.1]} 11. Nc3 {[%clk 0:02:50]}
11... Nbc6 {[%clk 0:02:51.7]} 12. Be3 {[%clk 0:02:42.1]} 12... Nf5 {[%clk
0:02:50.6]} 13. Qd2 {[%clk 0:02:08.4]} 13... f6 {[%clk 0:02:43.6]} 14. exf6
{[%clk 0:02:08.3]} 14... Bxf6 {[%clk 0:02:41.8]} 15. Ne2 {[%clk 0:02:06.6]}
15... Qb6 {[%clk 0:02:27.9]} 16. Rfd1 {[%clk 0:02:03.8]} 16... Rac8 {[%clk
0:02:11.7]} 17. Rac1 {[%clk 0:02:02.3]} 17... Qb4 {[%clk 0:00:49.1]} 18. Qxb4
{[%clk 0:00:50]} 18... Nxb4 {[%clk 0:00:50]} 19. a3 {[%clk 0:00:50.7]} 19... Nc2
{[%clk 0:00:27.3]} 20. Bg4 {[%clk 0:00:50.8]} 20... Ncxe3 {[%clk 0:00:20.2]} 21.
fxe3 {[%clk 0:00:49.9]} 21... Kf7 {[%clk 0:00:20.5]} 22. Bxf5 {[%clk 0:00:49.7]}
22... gxf5 {[%clk 0:00:20.1]} 23. Kf2 {[%clk 0:00:49.6]} 23... Ke7 {[%clk
0:00:20.1]} 24. Kf3 {[%clk 0:00:45.3]} 24... Bg5 {[%clk 0:00:16.6]} 25. Rxc8
{[%clk 0:00:43.4]} 25... Rxc8 {[%clk 0:00:16.2]} 26. Rc1 {[%clk 0:00:44.1]}
26... Rxc1 {[%clk 0:00:12.2]} 27. Nxc1 {[%clk 0:00:45]} 27... Kd6 {[%clk
0:00:12.7]} 28. Nd3 {[%clk 0:00:45.2]} 28... Bh6 {[%clk 0:00:10.9]} 29. g4
{[%clk 0:00:45.5]} 29... fxg4+ {[%clk 0:00:10.8]} 30. hxg4 {[%clk 0:00:45.6]}
30... Bg5 {[%clk 0:00:11.2]} 31. Nc5 {[%clk 0:00:41.3]} 31... b6 {[%clk
0:00:09.9]} 32. Nd3 {[%clk 0:00:42.2]} 32... h6 {[%clk 0:00:09.8]} 33. a4 {[%clk
0:00:39.9]} 33... Bf6 {[%clk 0:00:09.7]} 34. b4 {[%clk 0:00:38]} 34... e5 {[%clk
0:00:09.9]} 35. dxe5+ {[%clk 0:00:34.8]} 35... Bxe5 {[%clk 0:00:10.8]} 36. b5
{[%clk 0:00:30.9]} 36... Bh2 {[%clk 0:00:07.1]} 37. Kg2 {[%clk 0:00:30.8]} 37...
Be5 {[%clk 0:00:07.1]} 38. Kh3 {[%clk 0:00:31.3]} 38... Bf6 {[%clk 0:00:07.4]}
39. Kg3 {[%clk 0:00:31.7]} 39... Bg5 {[%clk 0:00:07.7]} 40. Kf3 {[%clk
0:00:31.6]} 40... Ke6 {[%clk 0:00:07.5]} 41. Nf4+ {[%clk 0:00:28.4]} 41... Ke5
{[%clk 0:00:07.2]} 42. Nd3+ {[%clk 0:00:28.7]} 42... Ke6 {[%clk 0:00:07.5]} 43.
Nb4 {[%clk 0:00:23.3]} 43... Kd6 {[%clk 0:00:07.7]} 44. Nc6 {[%clk 0:00:23.8]}
44... Kc5 {[%clk 0:00:07.9]} 45. Nxa7 {[%clk 0:00:14.1]} 45... Kb4 {[%clk
0:00:08.5]} 46. Nc8 {[%clk 0:00:14.8]} 46... Kc5 {[%clk 0:00:09]} 47. e4 {[%clk
0:00:13.2]} 47... dxe4+ {[%clk 0:00:09]} 48. Kxe4 {[%clk 0:00:13]} 48... Bh4
{[%clk 0:00:08.6]} 49. Ke5 {[%clk 0:00:11.6]} 49... Bf2 {[%clk 0:00:08.6]} 50.
Ke6 {[%clk 0:00:11.8]} 50... Be3 {[%clk 0:00:09]} 51. Kd7 {[%clk 0:00:12.1]}
51... Kb4 {[%clk 0:00:09.5]} 52. Kc6 {[%clk 0:00:12]} 52... Ka5 {[%clk
0:00:08.8]} 53. Nxb6 {[%clk 0:00:12.6]} 53... Bxb6 {[%clk 0:00:08.1]} 54. Kb7
{[%clk 0:00:09.4]} 54... Be3 {[%clk 0:00:08.5]} 55. Kc6 {[%clk 0:00:09.6]} 55...
Bd4 {[%clk 0:00:08.7]} 56. Kd5 {[%clk 0:00:07.7]} 56... Be3 {[%clk 0:00:07.7]}
57. Kc6 {[%clk 0:00:07.9]} 57... Kxa4 {[%clk 0:00:07.4]} 58. Kd5 {[%clk
0:00:06.7]} 58... Kxb5 {[%clk 0:00:07.2]} 59. Ke4 {[%clk 0:00:07.6]} 59... Bg5
{[%clk 0:00:07.4]} 60. Kf3 {[%clk 0:00:08.5]} 60... Kc6 {[%clk 0:00:07.8]} 61.
Kg2 {[%clk 0:00:09.4]} 61... Kd6 {[%clk 0:00:08.7]} 62. Kh1 {[%clk 0:00:10.3]}
62... Ke5 {[%clk 0:00:09.6]} 63. Kg2 {[%clk 0:00:10.8]} 63... Ke4 {[%clk
0:00:10.5]} 64. Kh1 {[%clk 0:00:11.7]} 64... Kf4 {[%clk 0:00:11.4]} 65. Kg2
{[%clk 0:00:12.1]} 65... Kxg4 {[%clk 0:00:12.3]} 66. Kh1 {[%clk 0:00:12.9]}
66... Bf4 {[%clk 0:00:13.2]} 67. Kg2 {[%clk 0:00:13.5]} 67... Bh2 {[%clk
0:00:14.1]} 68. Kh1 {[%clk 0:00:14.4]} 68... Kg3 {[%clk 0:00:14.6]} 1/2-1/2

[Event "Late-Titled-Tuesday-Blitz-March-12-2024"]
[Site "Chess.com"]
[Date "2024.03.12"]
[Round "1"]
[White "ContrVersia"]
[Black "N4700000"]
[Result "1-0"]
[WhiteElo "2869"]
[BlackElo "2495"]
[TimeControl "180+1"]
[EndTime "14:08:12 PDT"]
[Termination "ContrVersia won on time"]

1. d4 {[%clk 0:02:58.6]} 1... Nf6 {[%clk 0:02:58.5]} 2. c4 {[%clk 0:02:57.9]}
2... Nc6 {[%clk 0:02:58.1]} 3. Nf3 {[%clk 0:02:57.4]} 3... e6 {[%clk 0:02:57]}
4. g3 {[%clk 0:02:57.5]} 4... d5 {[%clk 0:02:56.4]} 5. Bg2 {[%clk 0:02:55.6]}
5... dxc4 {[%clk 0:02:55.6]} 6. O-O {[%clk 0:02:55.4]} 6... Rb8 {[%clk
0:02:50.9]} 7. Nc3 {[%clk 0:02:50.8]} 7... b5 {[%clk 0:02:41.8]} 8. Ne5 {[%clk
0:02:50.9]} 8... Nxe5 {[%clk 0:02:29.4]} 9. dxe5 {[%clk 0:02:51.8]} 9... Nd7
{[%clk 0:02:29.1]} 10. Qc2 {[%clk 0:02:51.8]} 10... Bc5 {[%clk 0:02:21.6]} 11.
Ne4 {[%clk 0:02:41]} 11... O-O {[%clk 0:02:06.5]} 12. Rd1 {[%clk 0:02:35.8]}
12... Qe7 {[%clk 0:01:57.4]} 13. Bg5 {[%clk 0:02:01.6]} 13... f6 {[%clk
0:01:55.7]} 14. exf6 {[%clk 0:02:02.5]} 14... Nxf6 {[%clk 0:01:45.6]} 15. b3
{[%clk 0:02:02.4]} 15... Bb7 {[%clk 0:01:26.1]} 16. Bxf6 {[%clk 0:01:36.9]}
16... gxf6 {[%clk 0:01:19.8]} 17. bxc4 {[%clk 0:01:37]} 17... b4 {[%clk
0:01:19.1]} 18. Nxc5 {[%clk 0:01:35.6]} 18... Qxc5 {[%clk 0:01:05.7]} 19. Rd7
{[%clk 0:01:34.5]} 19... Qh5 {[%clk 0:00:59.1]} 20. Bxb7 {[%clk 0:01:17.2]}
20... Rxb7 {[%clk 0:00:57.9]} 21. Qe4 {[%clk 0:01:16.9]} 21... Rb6 {[%clk
0:00:53.1]} 22. c5 {[%clk 0:01:12.2]} 22... Ra6 {[%clk 0:00:42.6]} 23. Rxc7
{[%clk 0:01:01.3]} 23... Qf5 {[%clk 0:00:33.2]} 24. Qxf5 {[%clk 0:00:47.7]}
24... exf5 {[%clk 0:00:33]} 25. Rb7 {[%clk 0:00:48.1]} 25... Rc6 {[%clk
0:00:30.5]} 26. Rxb4 {[%clk 0:00:42.9]} 26... Rxc5 {[%clk 0:00:29.9]} 27. Rf4
{[%clk 0:00:42.2]} 27... Rb8 {[%clk 0:00:20.7]} 28. a4 {[%clk 0:00:40.1]} 28...
a5 {[%clk 0:00:18.6]} 29. Kg2 {[%clk 0:00:36]} 29... Kf7 {[%clk 0:00:16.6]} 30.
Rd1 {[%clk 0:00:34.7]} 30... Rb2 {[%clk 0:00:16.4]} 31. e3 {[%clk 0:00:32.7]}
31... Kg6 {[%clk 0:00:15.2]} 32. h3 {[%clk 0:00:30.7]} 32... Rb4 {[%clk
0:00:13.8]} 33. Rdd4 {[%clk 0:00:16.6]} 33... Rxd4 {[%clk 0:00:12.8]} 34. Rxd4
{[%clk 0:00:17]} 34... h5 {[%clk 0:00:10.8]} 35. Kf3 {[%clk 0:00:16.7]} 35...
Kg5 {[%clk 0:00:08.6]} 36. h4+ {[%clk 0:00:05.2]} 36... Kg6 {[%clk 0:00:08.8]}
37. Kf4 {[%clk 0:00:05.7]} 37... Rc2 {[%clk 0:00:08.9]} 38. f3 {[%clk
0:00:05.6]} 38... Rc5 {[%clk 0:00:09.4]} 39. g4 {[%clk 0:00:03.4]} 39... fxg4
{[%clk 0:00:09.2]} 40. fxg4 {[%clk 0:00:04.3]} 40... hxg4 {[%clk 0:00:09.6]} 41.
Kxg4 {[%clk 0:00:05.2]} 41... Re5 {[%clk 0:00:09.6]} 42. Kf4 {[%clk 0:00:04.9]}
42... Rc5 {[%clk 0:00:09.6]} 43. Kf3 {[%clk 0:00:05.1]} 43... Kf5 {[%clk
0:00:08.3]} 44. Rf4+ {[%clk 0:00:05.5]} 44... Ke5 {[%clk 0:00:08.2]} 45. h5
{[%clk 0:00:05.8]} 45... Rc1 {[%clk 0:00:08.1]} 46. Rh4 {[%clk 0:00:05.6]} 46...
Rc7 {[%clk 0:00:06.5]} 47. h6 {[%clk 0:00:05.6]} 47... Rh7 {[%clk 0:00:06.8]}
48. Rh5+ {[%clk 0:00:06.1]} 48... f5 {[%clk 0:00:05.9]} 49. e4 {[%clk
0:00:06.3]} 49... Ke6 {[%clk 0:00:05.3]} 50. Rxf5 {[%clk 0:00:06.2]} 50... Rxh6
{[%clk 0:00:04.6]} 51. Rxa5 {[%clk 0:00:06.8]} 51... Rh3+ {[%clk 0:00:04.3]} 52.
Kf4 {[%clk 0:00:07.3]} 52... Ra3 {[%clk 0:00:04.6]} 53. Ra6+ {[%clk 0:00:07.2]}
53... Ke7 {[%clk 0:00:04.6]} 54. Ke5 {[%clk 0:00:07]} 54... Ra1 {[%clk
0:00:03.8]} 55. Ra7+ {[%clk 0:00:07.3]} 55... Kd8 {[%clk 0:00:03.8]} 56. Ke6
{[%clk 0:00:07.6]} 56... Rh1 {[%clk 0:00:02.3]} 57. e5 {[%clk 0:00:08.1]} 57...
Rh6+ {[%clk 0:00:01.3]} 58. Kd5 {[%clk 0:00:08.7]} 1-0

[Event "Late-Titled-Tuesday-Blitz-March-12-2024"]
[Site "Chess.com"]
[Date "2024.03.12"]
[Round "1"]
[White "Igor_Lysyj"]
[Black "Quattroporte300"]
[Result "1/2-1/2"]
[WhiteElo "2829"]
[BlackElo "2478"]
[TimeControl "180+1"]
[EndTime "14:08:13 PDT"]
[Termination "Game drawn by agreement"]

1. d4 {[%clk 0:03:00.1]} 1... d5 {[%clk 0:02:59.6]} 2. c4 {[%clk 0:02:59.9]}
2... dxc4 {[%clk 0:03:00]} 3. Nf3 {[%clk 0:02:59]} 3... Nf6 {[%clk 0:03:00.2]}
4. e3 {[%clk 0:02:58.7]} 4... Bg4 {[%clk 0:03:00.8]} 5. Bxc4 {[%clk 0:02:57.7]}
5... e6 {[%clk 0:03:01.2]} 6. Nc3 {[%clk 0:02:54.6]} 6... c5 {[%clk 0:02:58.7]}
7. Qa4+ {[%clk 0:02:53.2]} 7... Nbd7 {[%clk 0:02:43.3]} 8. Ne5 {[%clk 0:02:53]}
8... a6 {[%clk 0:02:19]} 9. Nxg4 {[%clk 0:02:50.3]} 9... Nxg4 {[%clk 0:02:12.8]}
10. dxc5 {[%clk 0:02:48]} 10... Ne5 {[%clk 0:02:11.4]} 11. Be2 {[%clk
0:02:45.4]} 11... Bxc5 {[%clk 0:02:11.1]} 12. O-O {[%clk 0:02:45]} 12... O-O
{[%clk 0:02:11.5]} 13. Rd1 {[%clk 0:02:44.1]} 13... Qe7 {[%clk 0:02:11]} 14. Qe4
{[%clk 0:02:35.6]} 14... b5 {[%clk 0:02:01.1]} 15. Bd2 {[%clk 0:02:33.4]} 15...
Rad8 {[%clk 0:01:54.2]} 16. Be1 {[%clk 0:02:33.5]} 16... f5 {[%clk 0:01:31.5]}
17. Qb7 {[%clk 0:02:33.4]} 17... Nb8 {[%clk 0:01:28.8]} 18. Qxe7 {[%clk
0:02:29.8]} 18... Bxe7 {[%clk 0:01:28.5]} 19. b3 {[%clk 0:02:20]} 19... Kf7
{[%clk 0:01:16.4]} 20. Rxd8 {[%clk 0:02:14.6]} 20... Rxd8 {[%clk 0:01:15.9]} 21.
Rd1 {[%clk 0:02:14.8]} 21... Rxd1 {[%clk 0:01:12.4]} 22. Nxd1 {[%clk 0:02:14.3]}
22... Nbc6 {[%clk 0:01:00.9]} 23. f4 {[%clk 0:02:12.7]} 23... Nd7 {[%clk
0:00:57.4]} 24. Bf3 {[%clk 0:02:09.3]} 24... Nb4 {[%clk 0:00:49.7]} 25. Nc3
{[%clk 0:01:45]} 25... Bc5 {[%clk 0:00:45.7]} 26. Bd2 {[%clk 0:01:37.9]} 26...
Ke7 {[%clk 0:00:40]} 27. Kf1 {[%clk 0:01:36.9]} 27... Kd6 {[%clk 0:00:35.4]} 28.
Ke2 {[%clk 0:01:37]} 28... g6 {[%clk 0:00:20]} 29. a3 {[%clk 0:01:26.5]} 29...
Nd5 {[%clk 0:00:18]} 30. Nb1 {[%clk 0:01:05]} 30... N7f6 {[%clk 0:00:15.1]} 31.
Kd3 {[%clk 0:01:04.5]} 31... h5 {[%clk 0:00:09.1]} 32. h3 {[%clk 0:01:03.9]}
32... Nd7 {[%clk 0:00:07]} 33. a4 {[%clk 0:00:58.3]} 33... bxa4 {[%clk
0:00:05.9]} 34. bxa4 {[%clk 0:00:58.8]} 34... N7b6 {[%clk 0:00:06.4]} 35. a5
{[%clk 0:00:58.5]} 35... Nd7 {[%clk 0:00:06.8]} 36. Nc3 {[%clk 0:00:56]} 36...
Nb4+ {[%clk 0:00:04.4]} 37. Kc4 {[%clk 0:00:54.2]} 37... Nc2 {[%clk 0:00:04.8]}
38. e4 {[%clk 0:00:50.1]} 38... Ne3+ {[%clk 0:00:03.9]} 39. Kd3 {[%clk
0:00:49.7]} 39... Nf1 {[%clk 0:00:02.8]} 40. e5+ {[%clk 0:00:43.7]} 40... Kc7
{[%clk 0:00:03]} 41. Na4 {[%clk 0:00:44]} 41... Nxd2 {[%clk 0:00:03]} 42. Kxd2
{[%clk 0:00:43.3]} 42... Bb4+ {[%clk 0:00:03.2]} 43. Kd3 {[%clk 0:00:38.7]}
43... Bxa5 {[%clk 0:00:04.1]} 44. Bd1 {[%clk 0:00:36.3]} 44... Be1 {[%clk
0:00:04.3]} 45. Bb3 {[%clk 0:00:35.3]} 45... Nf8 {[%clk 0:00:03.3]} 46. Nc5
{[%clk 0:00:30.6]} 46... a5 {[%clk 0:00:03.3]} 47. Nxe6+ {[%clk 0:00:27.5]}
47... Nxe6 {[%clk 0:00:04.2]} 48. Bxe6 {[%clk 0:00:27.7]} 48... Bg3 {[%clk
0:00:01.8]} 49. Ke3 {[%clk 0:00:27.6]} 49... a4 {[%clk 0:00:02]} 50. Kf3 {[%clk
0:00:24.5]} 50... Be1 {[%clk 0:00:02.5]} 51. g4 {[%clk 0:00:16.8]} 51... hxg4+
{[%clk 0:00:02.3]} 52. hxg4 {[%clk 0:00:17]} 52... fxg4+ {[%clk 0:00:03.2]} 53.
Kxg4 {[%clk 0:00:17.3]} 53... a3 {[%clk 0:00:04.1]} 54. Ba2 {[%clk 0:00:15.9]}
54... Bd2 {[%clk 0:00:04.2]} 55. Kg5 {[%clk 0:00:16.2]} 55... Kd8 {[%clk
0:00:04.3]} 56. Kf6 {[%clk 0:00:13.3]} 56... Bxf4 {[%clk 0:00:03.5]} 57. e6
{[%clk 0:00:13.8]} 57... Bd6 {[%clk 0:00:04.1]} 58. Kxg6 {[%clk 0:00:13.2]}
58... Be7 {[%clk 0:00:04.8]} 59. Kf7 {[%clk 0:00:13.1]} 59... Bc5 {[%clk
0:00:05.7]} 60. Kf6 {[%clk 0:00:11.2]} 1/2-1/2